Cogmind - Beta 13 @@@ ROGUE MODE // 2024.04.29 @ 20:27:48 Player: Some Pennies Result: Destroyed by HI-UQW(R) with Subdweller Machine Gun Performance ------------- Evolutions (0) 0 Regions Visited (2) 400 Robots Destroyed (35) 175 Value Destroyed (744) 744 Prototype IDs (0) 0 Alien Tech Used (0) 0 Bonus (0) 0 TOTAL SCORE: 1319 Bonus ------- None Cogmind --------- Core Integrity 0/250 Matter 272/300 Energy 250/250 System Corruption 0% Temperature Cool (0) Movement Treading (320) Ox2 Location -10/Subcaves Parts ------- > --- POWER (1) -------- Ion Engine > --- PROPULSION (2) --- Light Treads Light Treads > --- UTILITY (2) ------ Huge Storage Unit Improved Terrain Scanner > --- WEAPON (2) ------- Autogun Battle Rifle > --- INVENTORY (25) --- Light Ion Engine Improved Heat Sink High-capacity Storage Unit Structural Scanner Sensor Array Signal Interpreter Signal Interpreter Transport Network Coupler Cobbler Unit Beam Cannon Assault Rifle Autogun Grenade Launcher Mining Laser Heavy Hammer Piercing Trap Peak State ------------ > --- POWER ------------ Ion Engine > --- PROPULSION ------- Light Treads Light Treads > --- UTILITY ---------- Huge Storage Unit Improved Terrain Scanner > --- WEAPON ----------- Autogun Autogun > --- INVENTORY -------- Light Ion Engine Light Treads Light Treads Improved Heat Sink High-capacity Storage Unit Structural Scanner Sensor Array Signal Interpreter Signal Interpreter Transport Network Coupler Beam Cannon Assault Rifle Autogun Autogun Grenade Launcher Mining Laser Heavy Hammer Piercing Trap [Rating: 13] Favorites ----------- Power Ion Engine Engine Ion Engine Propulsion Light Treads Treads Light Treads Utility Seismic Detector Device Seismic Detector Storage Huge Storage Unit Weapon Autogun Energy Gun EM Pulse Gun Energy Cannon Beam Cannon Ballistic Gun Autogun Launcher Grenade Launcher Special Weapon Mining Laser Build | -11 -10 -10 ------- Run | Yrd Mat Sub Slots Evolved . | . . . Power . | . . . Propulsion . | . . . Utility . | . . . Weapon . | . . . Parts Attached 34 | 10 17 7 Power 3 | 1 2 . Engine 3 | 1 2 . Core . | . . . Reactor . | . . . Propulsion 7 | 2 3 2 Treads 7 | 2 3 2 Leg . | . . . Wheel . | . . . Hover . | . . . Flight . | . . . Utility 10 | 4 5 1 Device 6 | 3 2 1 Storage 4 | 1 3 . Processor . | . . . Hackware . | . . . Protection . | . . . Artifact . | . . . Weapon 14 | 3 7 4 Energy Gun 2 | 2 . . Energy Cannon 1 | . 1 . Ballistic Gun 8 | 1 4 3 Ballistic Cannon . | . . . Launcher 1 | . 1 . Special Weapon 2 | . 1 1 Impact Weapon . | . . . Slashing Weapon . | . . . Piercing Weapon . | . . . Special Melee Weapon . | . . . Unidentified Prototypes . | . . . Parts Lost 7 | . 3 4 Power . | . . . Propulsion 4 | . 2 2 Utility 1 | . . 1 Weapon 2 | . 1 1 Highest Loss Streak 2 | . 2 2 To Critical Strikes . | . . . Average Slot Usage (%) 97 | . 96 99 Engine 14 | . 14 14 Treads 25 | . 24 27 Device 14 | . 14 13 Storage 13 | . 13 14 Energy Gun 1 | . 2 . Ballistic Gun 23 | . 23 24 Special Weapon 1 | . . 3 Naked Turns . | . . . Heaviest Build 92 | 14 92 92 Greatest Support 40 | 40 40 40 Greatest Overweight (x) 4 | . 4 2 Average Overweight (x) 1 | . 1 2 Largest Inventory Capacity 25 | 8 25 25 Average Capacity 19 | 7 17 25 Most Carried 20 | 6 18 20 Average Carried 12 | 2 11 18 Final Capacity 25 | 5 25 25 Final Carried 18 | 5 18 17 Class Distribution -------------------- 100% | Mutant Dominant Class ---------------- Mutant | -10/Materials Mutant | -10/Subcaves Resources | -11 -10 -10 ----------- Run | Yrd Mat Sub Matter Collected 882 | 296 338 248 Remotely . | . . . Salvage Created 1177 | 210 662 305 Parts 74 | 21 36 17 Haulers Intercepted 2 | . 2 . Recyclers Shooed . | . . . Parts Field Recycled . | . . . Retrieved Matter . | . . . Parts Self-Destructed 5 | . . 5 Prevented . | . . . Kills | -11 -10 -10 ------- Run | Yrd Mat Sub Combat Hostiles Destroyed 18 | . 11 7 Guns 16 | . 9 7 Cannons 1 | . 1 . AOE 1 | . 1 . Classes Destroyed 9 | 3 5 1 Worker 1 | 1 . . Builder 1 | . 1 . Tunneler 8 | 8 . . Hauler 2 | . 2 . Recycler 2 | 1 1 . Watcher 3 | . 3 . Swarmer 3 | . 3 . Grunt 8 | . 8 . Subdweller 7 | . . 7 Best Kill Streak 5 | 5 3 3 Combat Bots Only 3 | . 3 3 Max Kills in Single Turn 2 | 1 2 1 Gunslinging . | . . . Exploded 1 | . 1 . Melee . | . . . Uniques/NPCs Destroyed . | . . . Combat | -11 -10 -10 -------- Run | Yrd Mat Sub Hostile Shots Fired 122 | . 73 49 Missed 23 | . 14 9 Damage Taken 1662 | 26 676 960 Core 252 | . 102 150 Absorbed by Shields . | . . . Core Remaining (%) 100 | 100 . . Volleys Fired 117 | 16 68 33 Largest 2 | 2 2 2 Hottest 100 | 60 100 100 Shots Fired 217 | 32 126 59 Gun 203 | 32 118 53 Cannon 6 | . 6 . Launcher 1 | . 1 . Special 7 | . 1 6 Kinetic 150 | 16 81 53 Thermal 13 | . 7 6 Explosive 1 | . 1 . Electromagnetic 53 | 16 37 . Robot Hit Streak 20 | 14 7 20 Robot Miss Streak 5 | 2 5 4 Penetration Max . | . . . Secondary Targets 2 | . 2 . Max Gunslinging Chain 1 | . 1 . Shots Hit Robots 137 | 20 77 40 Core Hits 59 | 14 32 13 Critical Kills . | . . . Critical Parts Destroyed . | . . . Critical Strikes 3 | 2 1 . Corrupt 3 | 2 1 . Melee Attacks . | . . . Impact . | . . . Slashing . | . . . Piercing . | . . . Sneak Attacks . | . . . Combat Hostiles . | . . . Follow-up Attacks . | . . . Damage Inflicted 1962 | 346 1006 610 Guns 1680 | 216 854 610 Cannons 88 | . 88 . Explosions 194 | 130 64 . Melee . | . . . Ramming . | . . . Kinetic 1145 | 32 503 610 Thermal 218 | 130 88 . Explosive 64 | . 64 . Electromagnetic 535 | 184 351 . Impact . | . . . Slashing . | . . . Piercing . | . . . Highest Corruption . | . . . Average Corruption . | . . . Corruption Purged . | . . . Corruption Blocked . | . . . Overload Shots . | . . . Overflow Damage 6 | 6 . . Projectiles . | . . . Explosions 6 | 6 . . Melee . | . . . Knockbacks . | . . . Impact . | . . . Kinetic . | . . . Secondary . | . . . Self-Inflicted Damage 26 | 26 . . Shots 1 | 1 . . Rammed . | . . . Targets Rammed . | . . . Kicked . | . . . Crushed . | . . . Highest Temperature 169 | 40 169 . Average Temperature 42 | 17 47 . Received Heat Transfer 438 | . 339 99 Siege Activations . | . . . Robots Corrupted . | . . . Combat Hostiles . | . . . Parts Fried 3 | . 3 . Impact Corruptions . | . . . Robots Melted . | . . . Combat Hostiles . | . . . Parts Melted . | . . . Heat Transferred 385 | 200 185 . Parts Sabotaged . | . . . Parts Stolen . | . . . Parts Stripped . | . . . Power Chain Reactions 2 | 2 . . Alert | -11 -10 -10 ------- Run | Yrd Mat Sub Peak Influence 202 | 50 202 . Initial 32 | . 32 . Average 54 | 22 57 . Maximum Alert Level 1 | . 1 . Low Security (%) 92 | 100 91 . Level 1 7 | . 8 . Level 2 . | . . . Level 3 . | . . . Level 4 . | . . . Level 5 . | . . . High Security . | . . . Max Security . | . . . Squads Dispatched 2 | . 2 . Investigation 2 | . 2 . Extermination . | . . . Reinforcement . | . . . Assault . | . . . Garrison . | . . . Intercept . | . . . Searches Triggered . | . . . Construction Impeded . | . . . Haulers Reinforced . | . . . Active Scanning Responses . | . . . Cargo Convoy Interrupts . | . . . Stealth | -11 -10 -10 --------- Run | Yrd Mat Sub Distress Signals 2 | . 2 . Communications Jammed . | . . . Distress Signals . | . . . Times Spotted 40 | . 31 9 Peak Tracking Total 5 | . 5 2 Tactical Retreats 1 | . 1 . Traps | -11 -10 -10 ------- Run | Yrd Mat Sub Traps Triggered 3 | . . 3 Indirectly . | . . . Trap Hack Attempts . | . . . Triggered . | . . . Disarmed . | . . . Reprogrammed . | . . . Reused . | . . . Traps Extracted . | . . . Installed . | . . . Triggered . | . . . Most Traps Carried 1 | . . 1 Machines | -11 -10 -10 ---------- Run | Yrd Mat Sub Machines Disabled 1 | . 1 . Max in Single Turn 1 | . 1 . Machines Repaired . | . . . Machines Dismantled . | . . . Machines Sabotaged . | . . . Overloaded Fab Kills . | . . . Hacking | -11 -10 -10 --------- Run | Yrd Mat Sub Machines Accessed 8 | . 8 . Terminals 7 | . 7 . Fabricators . | . . . Repair Stations . | . . . Recycling Units 1 | . 1 . Scanalyzers . | . . . Garrison Access . | . . . Total Hacks 20 | . 20 . Successful 9 | . 9 . Failed 10 | . 10 . Catastrophic . | . . . Database Lockouts 1 | . 1 . Manual 7 | . 7 . Terminals 19 | . 19 . Fabricators . | . . . Repair Stations . | . . . Recycling Units 1 | . 1 . Scanalyzers . | . . . Garrison Access . | . . . Terminal Hacks 8 | . 8 . Robot Analysis 1 | . 1 . Locate Traps 5 | . 5 . Zone Layout 2 | . 2 . Fabricator Hacks . | . . . Repair Station Hacks . | . . . Recycling Unit Hacks 1 | . 1 . Report Inventory 1 | . 1 . Scanalyzer . | . . . Garrison Access Hacks . | . . . Unauthorized Hacks . | . . . Terminals . | . . . Fabricators . | . . . Repair Stations . | . . . Recycling Units . | . . . Scanalyzers . | . . . Garrison Access . | . . . Data Cores Recovered . | . . . Used . | . . . Hacking Detections 6 | . 6 . Full Trace Events 3 | . 3 . Feedback Events . | . . . Feedback Blocked . | . . . Robot Schematics Acquired . | . . . Robots Built . | . . . Authchips . | . . . Time . | . . . Total Robot Build Rating . | . . . Part Schematics Acquired . | . . . Parts Built . | . . . Authchips . | . . . Time . | . . . Total Part Build Rating . | . . . Parts Repaired . | . . . Time . | . . . Parts Recycled . | . . . Recycled Matter . | . . . Retrieved Matter . | . . . Retrieved Components . | . . . Parts Scanalyzed . | . . . Part Schematics Acquired . | . . . Parts Damaged . | . . . Bothacking | -11 -10 -10 ------------ Run | Yrd Mat Sub Used RIF Installer . | . . . Robots Hacked . | . . . Non-combat . | . . . Combat . | . . . Robot Hacks Applied . | . . . Relay Couplers Released . | . . . Fabnet Peak Effective % . | . . . Robots Rewired . | . . . Allies Hacked . | . . . Hacks Repelled . | . . . Allies | -11 -10 -10 -------- Run | Yrd Mat Sub Total Allies . | . . . Largest Group . | . . . Highest-Rated Group . | . . . Highest-Rated Ally . | . . . Total Orders . | . . . Ally Attacks . | . . . Total Damage . | . . . Kills . | . . . Allies Corrupted . | . . . Allies Melted . | . . . Intel | -11 -10 -10 ------- Run | Yrd Mat Sub Robot Analysis Total 1 | . 1 . Derelict Logs Recovered . | . . . Drone Launches . | . . . Drone Recoveries . | . . . Exploration | -11 -10 -10 ------------- Run | Yrd Mat Sub Turns Passed 3724 | 266 2242 1216 Spaces Moved 1272 | 131 799 342 Core 103 | 12 91 . Treads 1169 | 119 708 342 Legs . | . . . Wheels . | . . . Hover . | . . . Flight . | . . . Fastest Speed 50 | 50 160 320 Average Speed 255 | 149 245 320 Slowest Speed 320 | 160 320 320 Overloaded Moves . | . . . Propulsion Burnouts . | . . . Robots Hopped . | . . . Cave-ins Triggered . | . . . Exploration Rate (%) 39 | 4 93 21 Regions Visited 2 Branch Regions 1 Pre-discovered Areas . | . . . Known Exits Taken . | . . . Unknown Exits Taken 2 | 1 1 . Scrap Searched . | . . . Spaces Dug 1 | . 1 . Terrain Destroyed 13 | 4 9 . Melee . | . . . Projectile 1 | . 1 . AOE 12 | 4 8 . Terrain Rammed . | . . . Walls Destroyed . | . . . Machines Disabled . | . . . Actions | -11 -10 -10 --------- Run | Yrd Mat Sub Total 1538 | 171 968 399 Wait 70 | . 57 13 Move 1270 | 130 798 342 Hop . | . . . Pick Up 36 | 13 20 3 Fast Attach 1 | 1 . . Attach 15 | 7 3 5 Detach . | . . . Swap 18 | 2 14 2 Drop 11 | 2 8 1 Fire 117 | 16 68 33 Melee . | . . . Ram . | . . . Kick . | . . . Crush . | . . . Escape Stasis . | . . . Rewire . | . . . Trap . | . . . Miscellaneous . | . . . Route ------- -11/Scrapyard -10/Materials (discovered 5 exits: [*Mat x3] / [*Min] / [*Sub]) -10/Subcaves History --------- Turn | Location | Event 6 | -11/Scrapyard | Discovered new exit (range 15) 267 | -11/Scrapyard | Entered Materials 317 | -10/Materials | Build established: Mutant 616 | -10/Materials | Discovered new exit (range 15) 1121 | -10/Materials | Central database locked down 1220 | -10/Materials | Discovered new exit (range 8) 1485 | -10/Materials | Discovered new exit (range 4) 1669 | -10/Materials | Discovered new exit (range 8) 2313 | -10/Materials | Discovered new exit (range 9) 2509 | -10/Materials | Entered Subcaves 2534 | -10/Subcaves | A swath of the cavern ceiling suddenly collapsed 3077 | -10/Subcaves | Shifting Twisted Machinery released Sub. Machine Gun 3078 | -10/Subcaves | Shifting Twisted Machinery released Flamer 3200 | -10/Subcaves | Core integrity fell below 50% 3338 | -10/Subcaves | A swath of the cavern ceiling suddenly collapsed 3448 | -10/Subcaves | Core integrity fell below 20% 3725 | -10/Subcaves | Destroyed by HI-UQW(R) with Subdweller Machine Gun Last Messages --------------- 03397_ Acquired 8 matter. 03404_ Subatomizers dissect the Sub. Power Source. 03404_ Dropped Autogun. 03404_ Acquired Battle Rifle. 03406_ Acquired 10 matter. 03422_ Triggered Piercing Trap. 03422_ Spikes shoot up from the floor. 03422_ Critical hit (Impale). 03422_ Autogun destroyed. 03435_ Triggered Piercing Trap. 03435_ Spikes shoot up from the floor. 03435_ Critical hit (Impale). 03447_ Triggered Piercing Trap. 03447_ Spikes shoot up from the floor. 03597_ Acquired 10 matter. 03639_ Subatomizers dissect the Sub. Monowheel. 03662_ Subatomizers dissect the Sub. Monowheel, destroying it. Map ----- +----------------------------------------------------+ | ?????????????????????????????????????????????????? | | ?????????????????????????????????????????????????? | | ?????? ??????????????????????????????????????????? | | ???#?????????????????????????????????????????????? | | ?????????????????????????????????????????????????? | | ?????????????????????????????????????????????????? | | ?????????????????????????????????????????????????? | | ?#???????????????????????????????????????????????? | | ?????????????????????????????????????????????????? | | #????????????????????????????????????????????????? | | #???????????????????????#???? ???????????????????? | | #?????????????????????????#??????????????????????? | | #????????#?????????????#"""??????????????????????? | | ##????#????????????????""""??????????????????????? | | ##???????????????????? ??????????????????????? | | #?????????????##?????# R ????? ????????????????? | | ##???????????????????? R ##?????????????????????? | | ###?????????#?????????? #?????????????????????? | | #?#?##????????????#????# #????#????????????????? | | ##??#???#????????#?????# #?????????????????????? | | "#??##?#???????????????# ??????????????????????? | | ##???????#????#???#??? ?????#????????????????? | | #??????###??????????## ##?????????#???????????? | | #?####????#????#???## #????#?# #???????????? | | ##???????##?#??#?????## #?##?#?# #???????????? | | #????????????#????#?## @## ##?# ##??????????? | | #?#?#???#?#??????##??# ##""## #????????????? | | ###??#?????#?#???#???## " " #????????????? | | #?????????????????#?### " " #???? ???????? | | ##??#???#????????##### " " #?### #??#????? | | ##?##????##??????# ## """"" ## # #???????? | | #?#??#?#?##???### " "#??????? | | ####??????????#### ## " " "????????? | | ###??#???#??#### ### [ " #?????????? | | ####???#?#### ## """" ##????????? | | ##?###### " """ ## #????? | | # # ###[ """ ????? | | *[ ## ### """ #???? | | # !& #### #?## """ #???? | | # ## &#### ## ##??## ##?## """ #????? | | ########??######??#?#### ##?## """" | #?????? | | ##??#??????????????#???###?## """## #?????? | | ???#???#??????###?????????## ""### #??#??? | | ????????????????#??#####??#" ""## ###?#???? | | #??????????#??#???#???????# #????????? | | ????????#??????#??#?#???#?# ##???#???? | | ?#????????????###?????#??# ### #???????? | | ?#???????????????????#??# ?## ## ##????#?? | | ??????##??????????????#?# ??# ##?# #????#?? | | ?????????#??#?#?????????## ??## #### ##?????? | +----------------------------------------------------+ Best States ------------- Heat Dissipation 39 Energy Generation 10 Energy Capacity 250 Matter Stores 300 Matter Capacity 300 Sight Range 16 Terrain Scan Range 16 Terrain Scan Density 10 Evasion (%) 40 Recoil Reduction 2 Item Schematics ----------------- None Robot Schematics ------------------ None Fabricated ------------ Nothing Alien Tech Used ----------------- None Achievements -------------- None Challenges ------------ None Game ------ Seed ZhirovCompositeDerivative Manual? 0 Play Time 00:26:12 Cumulative 29.0 hours Start 2024.04.29 @ 18:58:23 End 2024.04.29 @ 20:27:48 Sessions 3 Manual Loads 0 Difficulty Rogue Special Mode None Game No. 32 Rogue 27 Adventurer 5 Explorer 0 Win Type - Total 0 Types 0/0/0/0/0/0/0/0/0 Lore% 24 Gallery% 27 Achievement% 22 Wizard Run 0 Options --------- Layout 2 ASCII 0 Keyboard 0 Movement Mouse Keybinds 0 Fullscreen 2 Font 24/Smallcaps Map View 50x44 Zoom Use 0% Tactical HUD 1 Map Filters NONE Filters NONE Steam 1 RUN: b667b26a-a61a-4151-a9cb-f4ed5270d6bc